lending/lending_fUSD_20251018
["ID","MTS","AMOUNT","RATE_DAILY","PERIOD"]
[391780853,1760803832595,-392.75634864,0.00032337,2]
[391780855,1760803832604,-392.75634864,0.00032355,2]
[391780857,1760803832616,-392.75634864,0.00032373,2]
[391780859,1760803832626,-200.0,0.00032382,2]
[391780861,1760803832636,-200.0,0.00032382,2]
[391780863,1760803832646,-150.0,0.00032382,2]
[391780865,1760803832656,-200.0,0.00032382,2]
[391780867,1760803832666,-200.0,0.00032382,2]
[391780869,1760803832675,-189.84531788,0.00032383,2]
[391780871,1760803832686,-152.40883161,0.0003239,2]
[391780874,1760803832696,-150.28,0.0003239,2]
[391780876,1760803832706,-150.28,0.0003239,2]
[391780878,1760803832717,-150.28,0.0003239,2]
[391780880,1760803832727,-392.75634864,0.00032392,2]
[391780882,1760803832736,-159.26108485,0.00032399,2]
[391780884,1760803832746,-500.0,0.00032399,2]
[391780885,1760803832755,-288.54397496,0.00032399,2]
[391780887,1760803832765,-500.0,0.00032399,2]
[391780889,1760803832775,-500.0,0.00032399,2]
[391780891,1760803832784,-500.0,0.00032399,2]
[391780894,1760803832798,-500.0,0.00032399,2]
[391780896,1760803832807,-500.0,0.00032399,2]
[391780898,1760803832817,-500.0,0.00032399,2]
[391780899,1760803832827,-500.0,0.00032399,2]
[391780901,1760803832837,-500.0,0.00032399,2]
[391780903,1760803832846,-500.0,0.00032399,2]
[391780906,1760803832857,-1509.79,0.00032399,2]
[391780908,1760803832868,-446.56,0.00032399,2]
[391780910,1760803832878,-500.0,0.00032399,2]
[391780912,1760803832888,-500.0,0.00032399,2]
[391780914,1760803832897,-500.0,0.00032399,2]
[391780916,1760803832908,-1699.16,0.00032399,2]
[391780918,1760803832918,-408.15442011,0.00032399,2]
[391780920,1760803832927,-500.0,0.00032399,2]
[391780922,1760803832936,-150.0,0.00032399,2]
[391780923,1760803832946,-500.0,0.00032399,2]
[391780924,1760803832956,-150.0,0.00032399,2]
[391780925,1760803832965,-200.0,0.00032399,2]
[391780926,1760803832973,-257.34975452,0.00032399,2]
[391780927,1760803832982,-276.99733715,0.00032399,2]
[391780928,1760803832991,-150.0,0.00032399,2]
[391780929,1760803832999,-500.0,0.00032399,2]
[391780930,1760803833007,-999.0,0.00032399,120]
[391780931,1760803833016,-150.0,0.00032399,20]
[391780932,1760803833025,-500.0,0.00032399,2]
[391780933,1760803833034,-500.0,0.00032399,2]
[391780934,1760803833043,-500.0,0.00032399,2]
[391780935,1760803833053,-500.0,0.00032399,2]
[391780936,1760803833064,-411.53260036,0.00032399,2]
[391780938,1760803833073,-201.79771514,0.00032399,2]
[391780940,1760803833083,-500.0,0.00032399,2]
[391780942,1760803833093,-500.0,0.00032399,2]
[391780944,1760803833102,-500.0,0.00032399,2]
[391780946,1760803833112,-604.98,0.00032399,2]
[391780948,1760803833121,-500.0,0.00032399,2]
[391780950,1760803833131,-500.0,0.00032399,2]
[391780952,1760803833141,-500.0,0.00032399,2]
[391780954,1760803833150,-500.0,0.00032399,2]
[391780956,1760803833160,-500.0,0.00032399,2]
[391780958,1760803833170,-373.58131258,0.00032399,2]
[391780960,1760803833179,-558.47975299,0.00032399,2]
[391780962,1760803833188,-705.51,0.00032399,2]
[391780964,1760803833199,-500.0,0.00032399,2]
[391780966,1760803833208,-3393.29,0.00032399,2]
[391780968,1760803833218,-500.0,0.00032399,2]
[391780970,1760803833228,-500.0,0.00032399,2]
[391780972,1760803833238,-310.21971293,0.00032399,2]
[391780974,1760803833249,-500.0,0.00032399,2]
[391780976,1760803833259,-299.57577025,0.00032399,2]
[391780978,1760803833269,-556.0,0.000324,5]
[391780980,1760803833278,-33179.71908812,0.000324,4]
[391780993,1760803833403,-634.54454562,0.000324,4]
[391781243,1760803837428,-305.24520198,0.00017672,2]
[391781244,1760803837440,-194.75479802,0.00017672,2]
[391781245,1760803837449,-78.44831103,0.00032399,2]
[391781246,1760803837487,-525.60765542,0.00032399,2]
[391781247,1760803837497,-1715.89234458,0.000324,4]
[391781248,1760803837508,-2642.36219085,0.000324,4]
[391781249,1760803837548,-1293.48215818,0.000324,4]
[391781250,1760803837608,-5246.69836242,0.000324,4]
[391781252,1760803837619,-3269.18700001,0.000324,4]
[391781254,1760803837631,-1099.8988,0.000324,4]
[391781410,1760803839509,-56455.0,0.000324,4]
[391781413,1760803839520,-6813.37099555,0.000324,4]
[391781419,1760803839730,-109271.25523707,0.000324,4]
[391781420,1760803839742,-2465.06191434,0.000324,4]
[391781421,1760803839754,-5337.1816701,0.000324,4]
[391781422,1760803839812,-106458.53281981,0.000324,4]
[391781423,1760803839824,-827.86832761,0.000324,4]
[391781424,1760803839835,-1310.1464904,0.000324,4]
[391781435,1760803842557,-2212.32359419,0.000324,4]
[391781436,1760803842605,-21855.55461601,0.000324,4]
[391781437,1760803842617,-468.8807574,0.000324,4]
[391781438,1760803842629,-1966.88692492,0.000324,4]
[391781439,1760803842656,-319.21810282,0.00032399,2]
[391781440,1760803842668,-180.78189718,0.00032399,2]
[391781441,1760803842676,-117.95160292,0.000324,4]
[391781442,1760803842709,-109249.99999998,0.000324,4]
[391781443,1760803842720,-920.1679598,0.000324,4]
[391781444,1760803842731,-563.80983786,0.000324,4]
[391781445,1760803842743,-1340.97096195,0.000324,4]
[391781446,1760803842754,-1459.46693135,0.000324,4]
[391781447,1760803842765,-672.75502268,0.000324,4]
[391781448,1760803842777,-3174.4650771,0.000324,4]
[391781449,1760803842789,-14038.99999965,0.000324,4]
[391781461,1760803845601,-15754.02188934,0.000324,4]
[391781462,1760803845618,-3118.69337497,0.000324,4]
[391781465,1760803845670,-1775.52917248,0.000324,4]
[391781467,1760803845682,-800.68610857,0.000324,4]
[391781469,1760803845854,-1821.88076272,0.000324,4]
[391781479,1760804177047,-213.28876202,0.00015453,2]
[391781480,1760804181083,-289.73762311,0.00015453,2]
[391781481,1760804183759,-116.54361487,0.00015453,2]
[391781482,1760804183784,-197.56690041,0.00016266,2]
[391781483,1760804185776,-300.0,0.00016266,2]
[391781484,1760804187762,-122.00309959,0.00016266,2]
[391781485,1760804187785,-71.26610041,0.00017079,2]
[391781486,1760804189918,-235.62764105,0.00017079,2]
[391781497,1760804236994,-312.67625854,0.00017079,2]
[391781498,1760804237019,-34.32374146,0.00017283,2]
[391781499,1760804240180,-160.67625854,0.00017283,2]
[391781500,1760804240204,-182.07330879,0.00017486,2]
[391781521,1760804708138,737473.07093473,0.00015,2]
[391781532,1760804894261,247.56446448,0.000135,2]
[391781533,1760804909509,221.49198898,0.0001,2]
[391781534,1760804912650,-195.0,0.00017639,2]
[391781535,1760804912675,-152.4172722,0.00017666,2]
[391781537,1760804914721,-178.9044041,0.00017666,2]
[391781540,1760804916754,-191.07508675,0.00017666,2]
[391781541,1760804918858,-223.88060482,0.00017666,2]
[391781542,1760804925622,2007.92146189,0.00013699,2]
[391781556,1760805031703,-150.0,0.00017766,2]
[391781557,1760805031714,-619.57,0.00017892,2]
[391781558,1760805031724,-3950.72881482,0.00018,2]
[391781559,1760805031734,-619.57,0.00018706,2]
[391781560,1760805031744,-619.57,0.00019519,2]
[391781561,1760805031754,-366.23510406,0.00019542,2]
[391781562,1760805031765,-195.0,0.00019542,2]
[391781563,1760805031775,-250.0,0.00019542,2]
[391781564,1760805031785,-619.57,0.00020332,2]
[391781565,1760805031795,-374.25429402,0.00020756,2]
[391781566,1760805031805,-57.26189706,0.00021146,2]
[391781567,1760805031818,-562.30810294,0.00021146,2]
[391781568,1760805031828,-2059.923776,0.00021255,2]
[391781569,1760805031837,-276.0,0.00021362,2]
[391781570,1760805031848,-196.0,0.00021404,2]
[391781571,1760805031857,-497.0,0.00021447,2]
[391781572,1760805031867,-160.0,0.0002149,2]
[391781573,1760805031877,-619.57,0.00021959,2]
[391781574,1760805031886,-599.0,0.00022083,2]
[391781575,1760805031896,-229.0,0.00022113,2]
[391781576,1760805031906,-151.0,0.00022114,2]
[391781577,1760805031916,-151.0,0.00022114,2]
[391781578,1760805031926,-151.0,0.00022114,2]
[391781579,1760805031936,-151.0,0.00022114,2]
[391781580,1760805031947,-151.0,0.00022114,2]
[391781581,1760805031957,-151.0,0.00022114,2]
[391781582,1760805031972,-151.0,0.00022114,2]
[391781583,1760805031988,-151.0,0.00022114,2]
[391781584,1760805031999,-239.52877829,0.00022114,2]
[391781586,1760805032009,-151.0,0.00022114,2]
[391781588,1760805032019,-151.0,0.00022114,2]
[391781590,1760805032029,-151.0,0.00022114,2]
[391781592,1760805032039,-151.0,0.00022114,2]
[391781593,1760805032049,-151.0,0.00022114,2]
[391781595,1760805032059,-151.0,0.00022114,2]
[391781597,1760805032069,-151.0,0.00022114,2]
[391781599,1760805032078,-151.0,0.00022114,2]
[391781601,1760805032088,-151.0,0.00022114,2]
[391781603,1760805032097,-151.0,0.00022114,2]
[391781605,1760805032107,-151.0,0.00022114,2]
[391781607,1760805032116,-151.0,0.00022114,2]
[391781609,1760805032125,-281.4888577,0.00022114,2]
[391781611,1760805032135,-151.0,0.00022114,2]
[391781613,1760805032144,-151.0,0.00022114,2]
[391781614,1760805032154,-151.0,0.00022114,2]
[391781617,1760805032165,-151.0,0.00022114,2]
[391781619,1760805032175,-151.0,0.00022114,2]
[391781639,1760805032365,-151.0,0.00022114,2]
[391781641,1760805032376,-151.0,0.00022114,2]
[391781643,1760805032386,-151.0,0.00022114,2]
[391781645,1760805032396,-151.0,0.00022114,2]
[391781647,1760805032405,-151.0,0.00022114,2]
[391781649,1760805032414,-151.0,0.00022114,2]
[391781651,1760805032423,-201.65049896,0.00022114,2]
[391781652,1760805032434,-151.0,0.00022114,2]
[391781653,1760805032443,-151.0,0.00022114,2]
[391781654,1760805032453,-151.0,0.00022114,2]
[391781655,1760805032463,-151.0,0.00022114,2]
[391781656,1760805032472,-151.0,0.00022114,2]
[391781657,1760805032481,-151.0,0.00022114,2]
[391781658,1760805032491,-151.0,0.00022114,2]
[391781659,1760805032500,-277.95210389,0.00022114,2]
[391781660,1760805032510,-200.0,0.00022114,2]
[391781661,1760805032519,-1578.0,0.00022127,2]
[391781662,1760805032528,-1482.0,0.00022171,2]
[391781663,1760805032538,-1219.0,0.00022215,2]
[391781664,1760805032548,-675.0,0.00022259,2]
[391781665,1760805032557,-1672.0,0.00022303,2]
[391781667,1760805032566,-575.0,0.00022348,2]
[391781668,1760805032576,-1851.0,0.00022392,2]
[391781670,1760805032585,-317.0,0.00022436,2]
[391781672,1760805032594,-1555.0,0.0002248,2]
[391781674,1760805032603,-500.0,0.00022514,2]
[391781676,1760805032612,-1769.0,0.00022524,2]
[391781678,1760805032622,-1115.0,0.00022568,2]
[391781680,1760805032631,-233.0,0.00022612,2]
[391781682,1760805032640,-312.0,0.00022656,2]
[391781684,1760805032649,-1387.0,0.000227,2]
[391781686,1760805032658,-1045.0,0.00022744,2]
[391781688,1760805032667,-619.57,0.00022772,2]
[391781690,1760805032676,-270.78505755,0.00023186,2]
[391781692,1760805032686,-1173.4981869,0.000232,2]
[391781694,1760805032695,-1173.4981869,0.000234,2]
[391781696,1760805032705,-619.57,0.00023585,2]
[391781698,1760805032715,-1173.4981869,0.000236,2]
[391781700,1760805032724,-500.0,0.00023817,2]
[391781702,1760805032733,-1173.4981869,0.000239,2]
[391781704,1760805032742,-1173.4981869,0.000241,2]
[391781706,1760805032751,-500.0,0.00024398,2]
[391781708,1760805032760,-500.0,0.00024398,2]
[391781710,1760805032768,-500.0,0.00024398,2]
[391781712,1760805032778,-288.35058662,0.00024398,2]
[391781714,1760805032787,-198.70562073,0.00024398,2]
[391781716,1760805032796,-619.57,0.00024399,2]
[391781718,1760805032805,-500.0,0.00024932,2]
[391781719,1760805032814,-619.57,0.00025212,2]
[391781722,1760805032824,-5108.0,0.000257,5]
[391781724,1760805032833,-619.57,0.00026025,2]
[391781726,1760805032843,-200.0,0.0002604,2]
[391781727,1760805032852,-249.16,0.00026629,2]
[391781729,1760805032862,-1288.798,0.00026786,14]
[391781731,1760805032871,-619.57,0.00026839,2]
[391781733,1760805032882,-166.92,0.0002718,2]
[391781736,1760805032892,-619.57,0.00027652,2]
[391781737,1760805032902,-619.57,0.00028465,2]
[391781739,1760805032912,-619.57,0.00029279,2]
[391781741,1760805032921,-279.01949361,0.00029293,7]
[391781743,1760805032931,-172.0,0.0002989,2]
[391781745,1760805032940,-619.57,0.00030092,2]
[391781747,1760805032949,-174.0,0.00030101,2]
[391781749,1760805032959,-1000.0,0.00030137,30]
[391781751,1760805032968,-1000.0,0.00030137,30]
[391781753,1760805032978,-1000.0,0.00030137,30]
[391781755,1760805032987,-1000.0,0.00030137,30]
[391781757,1760805032997,-1000.0,0.00030137,30]
[391781759,1760805033006,-1000.0,0.00030137,30]
[391781761,1760805033015,-1000.0,0.00030137,30]
[391781763,1760805033024,-1000.0,0.00030137,30]
[391781765,1760805033034,-1000.0,0.00030137,30]
[391781767,1760805033044,-1000.0,0.00030137,30]
[391781769,1760805033054,-1024.70242014,0.00030137,30]
[391781771,1760805033064,-370.3568611,0.00030137,30]
[391781774,1760805033081,-172.0,0.00030209,2]
[391781776,1760805033096,-298.9689638,0.0003024,5]
[391781778,1760805033106,-500.0,0.0003024,5]
[391781780,1760805033118,-500.0,0.0003024,5]
[391781782,1760805033128,-571.0,0.00030283,2]
[391781784,1760805033137,-1546.0,0.00030283,2]
[391781787,1760805033147,-1309.0,0.00030283,2]
[391781789,1760805033157,-604.0,0.00030283,2]
[391781791,1760805033167,-816.0,0.00030283,2]
[391781793,1760805033179,-1182.0,0.00030283,2]
[391781794,1760805033188,-2546.0,0.00030283,2]
[391781797,1760805033198,-902.0,0.00030283,2]
[391781799,1760805033208,-2590.0,0.00030283,2]
[391781801,1760805033218,-6437.0,0.00030283,2]
[391781803,1760805033232,-1267.0,0.00030283,2]
[391781805,1760805033242,-172.0,0.00030485,2]
[391781807,1760805033251,-172.0,0.00030576,2]
[391781809,1760805033264,-747.8093786,0.00030778,2]
[391781811,1760805033275,-277.35679052,0.00030778,2]
[391781813,1760805033284,-151.52916495,0.00030778,2]
[391781815,1760805033297,-322.6107,0.00030778,2]
[391781817,1760805033307,-1000.0,0.00030788,5]
[391781819,1760805033317,-1000.9507048,0.00030788,5]
[391781821,1760805033326,-172.0,0.00030818,2]
[391781822,1760805033336,-172.0,0.00030864,7]
[391781823,1760805033345,-619.57,0.00030905,2]
[391781824,1760805033355,-250.0,0.00031014,7]
[391781825,1760805033365,-500.0,0.00031021,7]
[391781826,1760805033374,-600.0,0.00031021,7]
[391781827,1760805033384,-500.0,0.00031021,7]
[391781828,1760805033393,-500.97711855,0.00031336,5]
[391781829,1760805033403,-172.0,0.0003141,2]
[391781830,1760805033414,-696.60556713,0.00031427,2]
[391781831,1760805033424,-666.0,0.00031508,3]
[391781832,1760805033434,-166.92,0.00031666,2]
[391781833,1760805033444,-600.0,0.00031843,7]
[391781834,1760805033454,-5000.0,0.00032,7]
[391781835,1760805033465,-500.0,0.00032,7]
[391781836,1760805033475,-1000.42768112,0.00032,30]
[391781837,1760805033484,-538.0,0.0003203,2]
[391781838,1760805033494,-1000.0,0.00032054,30]
[391781839,1760805033504,-815.53473,0.0003208,2]
[391781840,1760805033514,-1457.39549157,0.000321,30]
[391781841,1760805033525,-1500.0,0.000321,30]
[391781842,1760805033535,-1500.0,0.000321,30]
[391781843,1760805033545,-200.0,0.0003214,2]
[391781844,1760805033555,-308.52309571,0.00032147,2]
[391781845,1760805033564,-322.6107,0.00032147,2]
[391781846,1760805033574,-172.0,0.00032286,7]
[391781847,1760805033584,-1000.0,0.000323,2]
[391781848,1760805033593,-5000.0,0.000323,2]
[391781849,1760805033602,-157.10253951,0.000323,2]
[391781850,1760805033611,-170.924102,0.000323,2]
[391781851,1760805033621,-177.31887061,0.000323,15]
[391781852,1760805033631,-189.84531788,0.000323,2]
[391781853,1760805033640,-1835.70626988,0.000323,4]
[391781854,1760805033649,-1000.0,0.000323,14]
[391781855,1760805033659,-1317.7978277,0.00032312,2]
[391781856,1760805033669,-1489.10389364,0.00032312,2]
[391781857,1760805033686,-925.84284746,0.00032312,2]
[391781858,1760805033697,-644.96123496,0.00032312,2]
[391781859,1760805033708,-449.6702639,0.00032312,2]
[391781860,1760805033719,-832.28589259,0.00032312,2]
[391781861,1760805033731,-379.50899315,0.00032312,2]
[391781862,1760805033744,-265.37766493,0.00032312,2]
[391781863,1760805033756,-816.0,0.00032312,2]
[391781864,1760805033767,-767.35981764,0.00032312,2]
[391781865,1760805033778,-355.57996271,0.00032312,2]
[391781866,1760805033794,-53.67064972,0.00032312,2]
[391781867,1760805033804,-157.10253945,0.00032318,2]
[391781868,1760805033814,-401.18074896,0.00032328,30]
[391781869,1760805033824,-157.10253945,0.00032337,2]
[391781870,1760805033834,-157.10253945,0.00032355,2]
[391781871,1760805033843,-170.924102,0.00032355,2]
[391781872,1760805033857,-177.31887059,0.00032355,15]
[391781873,1760805033867,-64.52223662,0.00032373,5]
[391781874,1760805033879,-383.47776338,0.00032373,5]
[391781875,1760805033889,-2.81078068,0.00032373,2]
[391781876,1760805033903,-154.29175877,0.00032373,2]
[391781877,1760805033912,-150.33,0.0003239,2]
[391781878,1760805033922,-150.33,0.0003239,2]
[391781879,1760805033934,-150.33,0.0003239,2]
[391781880,1760805033944,-150.33,0.0003239,2]
[391781881,1760805033954,-150.33,0.0003239,2]
[391781882,1760805033966,-203.21177549,0.0003239,2]
[391781883,1760805033976,-157.10253945,0.00032392,2]
[391781884,1760805033986,-1000.0,0.00032396,2]
[391781885,1760805033995,-500.0,0.00032398,2]
[391781886,1760805034007,-500.0,0.00032398,2]
[391781887,1760805034017,-500.0,0.00032398,2]
[391781888,1760805034027,-500.0,0.00032398,2]
[391781889,1760805034037,-500.0,0.00032398,2]
[391781890,1760805034047,-500.0,0.00032398,2]
[391781891,1760805034057,-500.0,0.00032398,2]
[391781892,1760805034067,-500.0,0.00032398,2]
[391781893,1760805034077,-500.0,0.00032398,2]
[391781894,1760805034087,-3251.9,0.00032398,2]
[391781895,1760805034097,-500.0,0.00032398,2]
[391781896,1760805034106,-47913.72690695,0.00032399,2]
[391781897,1760805034116,-682.64160043,0.00032399,10]
[391781898,1760805034125,-246.00552393,0.00032399,2]
[391781899,1760805034135,-201.36,0.00032399,2]
[391781900,1760805034145,-500.0,0.00032399,2]
[391781901,1760805034154,-500.0,0.00032399,2]
[391781902,1760805034164,-500.0,0.00032399,2]
[391781903,1760805034173,-500.0,0.00032399,2]
[391781904,1760805034184,-500.0,0.00032399,2]
[391781905,1760805034194,-500.0,0.00032399,2]
[391781906,1760805034204,-481.47853721,0.00032399,2]
[391781907,1760805034214,-288.07282025,0.00032399,2]
[391781908,1760805034227,-500.0,0.00032399,2]
[391781909,1760805034237,-500.0,0.00032399,2]
[391781910,1760805034247,-500.0,0.00032399,2]
[391781911,1760805034256,-500.0,0.00032399,2]
[391781912,1760805034266,-306.6,0.00032399,2]
[391781913,1760805034276,-1001.8032,0.00032399,2]
[391781914,1760805034288,-500.0,0.00032399,2]
[391781915,1760805034298,-500.0,0.00032399,2]
[391781916,1760805034308,-500.0,0.00032399,2]
[391781917,1760805034318,-500.0,0.00032399,2]
[391781918,1760805034328,-500.0,0.00032399,2]
[391781919,1760805034337,-500.0,0.00032399,2]
[391781920,1760805034347,-209.6533666,0.00032399,2]
[391781921,1760805034356,-150.0,0.00032399,2]
[391781922,1760805034366,-500.0,0.00032399,2]
[391781923,1760805034375,-150.0,0.00032399,2]
[391781924,1760805034384,-150.0,0.00032399,2]
[391781925,1760805034394,-1446.88,0.00032399,2]
[391781926,1760805034406,-150.0,0.00032399,2]
[391781927,1760805034418,-579.78,0.00032399,2]
[391781928,1760805034427,-500.0,0.00032399,2]
[391781929,1760805034436,-235.18,0.00032399,2]
[391781930,1760805034446,-676.12,0.00032399,2]
[391781931,1760805034455,-1809.72,0.00032399,2]
[391781932,1760805034465,-500.0,0.00032399,2]
[391781933,1760805034475,-500.0,0.00032399,2]
[391781934,1760805034484,-500.0,0.00032399,2]
[391781935,1760805034494,-500.0,0.00032399,2]
[391781936,1760805034503,-500.0,0.00032399,2]
[391781937,1760805034513,-150.0,0.00032399,2]
[391781938,1760805034522,-150.0,0.00032399,2]
[391781939,1760805034532,-500.0,0.00032399,2]
[391781940,1760805034542,-500.0,0.00032399,2]
[391781941,1760805034552,-500.0,0.00032399,2]
[391781942,1760805034561,-500.0,0.00032399,2]
[391781943,1760805034570,-500.0,0.00032399,2]
[391781944,1760805034580,-500.0,0.00032399,2]
[391781945,1760805034589,-6.2254732,0.00032399,2]
[391781952,1760805037514,-834.063,0.00030283,2]
[391781953,1760805037524,-493.7745268,0.00032399,2]
[391781954,1760805037534,-999.0,0.00032399,120]
[391781955,1760805037544,-173.16247356,0.00032399,2]
[391781956,1760805037566,-326.83752644,0.00032399,2]
[391781957,1760805037577,-500.0,0.00032399,2]
[391781958,1760805037587,-500.0,0.00032399,2]
[391781959,1760805037597,-245.29,0.00032399,2]
[391781960,1760805037608,-500.0,0.00032399,2]
[391781961,1760805037619,-150.0,0.00032399,2]
[391781962,1760805037630,-150.0,0.00032399,2]
[391781963,1760805037640,-500.0,0.00032399,2]
[391781964,1760805037650,-500.0,0.00032399,2]
[391781965,1760805037659,-246.02992308,0.00032399,2]
[391781966,1760805037671,-253.97007692,0.00032399,2]
[391781967,1760805037681,-500.0,0.00032399,2]
[391781968,1760805037691,-199.87,0.00032399,2]
[391781969,1760805037701,-500.0,0.00032399,2]
[391781970,1760805037710,-15092.79348406,0.000324,15]
[391781971,1760805037722,-1749.332804,0.000324,15]
[391781972,1760805037733,-67712.57378562,0.000324,15]
[391781973,1760805037744,-5436.0,0.000324,15]
[391781974,1760805037754,-1251.9,0.000324,15]
[391781975,1760805037765,-1436.8940928,0.000324,15]
[391781977,1760805037777,-344.83024,0.000324,15]
[391781979,1760805037791,-1089.4,0.000324,15]
[391782172,1760805039640,-14202.22478396,0.000324,15]
[391782175,1760805039653,-1887.1800863,0.000324,15]
[391782177,1760805039664,-9785.17540001,0.000324,15]
[391782179,1760805039675,-557.45,0.000324,15]
[391782182,1760805039686,-1614.02946469,0.000324,15]
[391782200,1760805039851,-393.0195115,0.000324,15]
[391782202,1760805039863,-978.97800002,0.000324,15]
[391782207,1760805039906,-119722.62881545,0.000324,15]
[391782306,1760805042702,-28301.14863199,0.000324,15]
[391782307,1760805042712,-22553.46047214,0.000324,4]
[391782308,1760805042724,-396.83604645,0.000324,4]
[391782309,1760805042736,-566.06087634,0.000324,4]
[391782310,1760805042747,-2578.63669856,0.000324,4]
[391782311,1760805042764,-384.66545439,0.000324,4]
[391782312,1760805042775,-309.49845999,0.000324,4]
[391782313,1760805042786,-183943.64110933,0.000324,4]
[391782314,1760805042820,-12579.68372204,0.000324,4]
[391782315,1760805042831,-424.19112607,0.000324,4]
[391782316,1760805042842,-30306.64153013,0.000324,4]
[391782328,1760805045739,-2049.0,0.00030283,2]
[391782329,1760805045749,-2000.0,0.00032373,120]
[391782330,1760805045759,-251.0,0.00032373,120]
[391782331,1760805045771,-748.2799996,0.00032373,120]
[391782332,1760805045959,-536.86988,0.00032373,120]
[391782333,1760805045971,-459.59000005,0.00032373,120]
[391782334,1760805045983,-4.26012035,0.00032373,120]
[391782335,1760805045993,-304.98982465,0.00032373,120]
[391782336,1760805046006,-1695.01017535,0.00032373,120]
[391782337,1760805046015,-248.63227113,0.00032398,2]
[391782338,1760805046027,-335.77407746,0.00032398,2]
[391782339,1760805046037,-1508.46515982,0.000324,4]
[391782340,1760805046049,-1739.97,0.000324,4]
[391782341,1760805046077,-17649.49567936,0.000324,4]
[391782344,1760805061832,195.0,0.00026836,120]
[391782345,1760805063231,300.0,0.00026836,120]
[391782346,1760805063266,193.49446413,0.0002734,120]
[391782348,1760805337380,164.0,8.159e-05,2]
[391782349,1760805337606,160.0,8.159e-05,2]
[391782350,1760805337822,160.0,8.159e-05,2]
[391782351,1760805338081,160.0,8.159e-05,2]
[391782352,1760805338333,160.0,8.159e-05,2]
[391782354,1760805731908,224.68,0.00013699,2]
[391782358,1760805823885,1400.23,0.00027417,120]
[391782362,1760805908496,20000.0,0.00015,2]
[391782392,1760806231748,-224.68,0.00020187,2]
[391782393,1760806231765,-188.64,0.0002068,2]
[391782394,1760806231775,-579.7347067,0.00022106,2]
[391782395,1760806231785,-300.0,0.00022206,2]
[391782396,1760806231795,-174.98483615,0.000231,2]
[391782397,1760806231804,-163.42277425,0.000231,2]
[391782398,1760806231814,-1904.01764331,0.000232,2]
[391782399,1760806231824,-1200.0,0.00023399,2]
[391782400,1760806231835,-163.42277425,0.000234,2]
[391782401,1760806231845,-1904.01764331,0.000234,2]
[391782402,1760806231855,-163.42277425,0.000236,2]
[391782403,1760806231864,-787.0,0.00023697,2]
[391782404,1760806231874,-74.79348786,0.00023697,2]
[391782405,1760806231886,-225.20651214,0.00023697,2]
[391782406,1760806231896,-300.0,0.00023697,2]
[391782407,1760806231906,-300.0,0.00023697,2]
[391782408,1760806231915,-1904.01764331,0.000237,2]
[391782409,1760806231925,-163.42277425,0.000238,2]
[391782410,1760806231935,-1904.01764331,0.000239,2]
[391782411,1760806231945,-42.53185225,0.000241,2]
[391782412,1760806231957,-120.890922,0.000241,2]
[391782413,1760806231971,-1904.01764331,0.000241,2]
[391782414,1760806231981,-207.0,0.00024611,2]
[391782415,1760806231991,-500.0,0.00024932,2]
[391782416,1760806232000,-1685.0,0.00025196,2]
[391782417,1760806232010,-1307.0,0.00025247,2]
[391782418,1760806232020,-472.0,0.00025297,2]
[391782419,1760806232029,-1680.0,0.00025508,2]
[391782420,1760806232039,-300.0,0.00025706,2]